bitfinex-derivatives/quotes_BTCF0:USTF0_20240917
["timestamp","ask_amount","ask_price","bid_price","bid_amount"]
[1726578524592,0.531124,59412.0,59411.0,0.00036]
[1726578525497,0.446962,59412.0,59405.0,0.00252469]
[1726578525697,0.08417,59406.0,59405.0,0.00252469]
[1726578525895,0.08457,59406.0,59405.0,0.03057498]
[1726578526096,0.08457,59406.0,59405.0,0.00252469]
[1726578526097,0.16874,59406.0,59405.0,0.00252469]
[1726578526493,0.084182,59398.0,59397.0,0.0039]
[1726578526694,0.084182,59398.0,59397.0,0.02772654]
[1726578526695,0.244582,59398.0,59397.0,0.02772654]
[1726578526889,0.244582,59398.0,59395.0,0.0138]
[1726578527296,0.0004,59396.0,59395.0,0.12593752]
[1726578527503,0.0004,59396.0,59395.0,0.097986]
[1726578527702,0.001,59398.0,59397.0,0.0026]
[1726578527904,0.001,59398.0,59397.0,0.003]
[1726578528209,0.001,59398.0,59397.0,0.247183]
[1726578528501,0.002,59398.0,59397.0,0.247183]
[1726578528708,0.002,59398.0,59397.0,0.327783]
[1726578529102,0.002,59398.0,59397.0,0.411966]
[1726578529407,0.002,59398.0,59397.0,0.487166]
[1726578529408,0.001,59398.0,59397.0,0.487166]
[1726578529711,0.001,59398.0,59397.0,0.486806]
[1726578530095,0.00252529,59403.0,59402.0,0.084176]
[1726578530397,0.00252529,59403.0,59402.0,0.605376]
[1726578530794,0.00252529,59403.0,59402.0,0.604976]
[1726578531707,0.00352529,59403.0,59402.0,0.604976]
[1726578532391,0.00352529,59403.0,59402.0,0.689152]
[1726578532598,0.00452529,59403.0,59402.0,0.606976]
[1726578533003,0.00452529,59403.0,59402.0,0.446976]
[1726578533510,0.00452529,59403.0,59402.0,0.47435613]
[1726578536917,0.00452529,59403.0,59402.0,0.39018013]
[1726578536918,0.08870029,59403.0,59402.0,0.39018013]
[1726578538114,0.08870029,59403.0,59402.0,0.47435613]
[1726578538115,0.00452529,59403.0,59402.0,0.47435613]
[1726578539500,0.00452529,59403.0,59402.0,0.63435613]
[1726578540603,0.00452529,59403.0,59402.0,0.71853213]
[1726578543711,0.00452529,59403.0,59402.0,0.63435613]
[1726578544415,0.00452529,59403.0,59402.0,0.71853213]
[1726578544601,0.00452529,59403.0,59402.0,0.63435613]
[1726578544812,0.00436529,59403.0,59402.0,0.47435613]
[1726578545507,0.24854029,59403.0,59402.0,0.02938013]
[1726578545812,0.33271529,59403.0,59402.0,0.02938013]
[1726578546108,0.33271529,59403.0,59402.0,0.02738013]
[1726578546314,0.084181,59399.0,59395.0,0.098385]
[1726578546621,0.16,59396.0,59395.0,0.098385]
[1726578546915,0.1604,59396.0,59395.0,0.098385]
[1726578547309,0.0004,59396.0,59395.0,0.098385]
[1726578547617,0.0004,59396.0,59395.0,0.603465]
[1726578547806,0.0014,59396.0,59395.0,0.771251]
[1726578548214,0.0014,59396.0,59395.0,0.79723177]
[1726578548809,0.0024,59396.0,59395.0,0.79723177]
[1726578549318,0.00626529,59403.0,59402.0,0.252528]
[1726578549518,0.0039,59414.0,59413.0,0.08416]
[1726578549812,0.00204,59418.0,59414.0,0.168318]
[1726578550009,0.00204,59418.0,59417.0,0.084155]
[1726578550209,0.00204,59418.0,59417.0,0.244555]
[1726578550414,0.00204,59418.0,59417.0,0.244155]
[1726578550715,0.00204,59418.0,59417.0,0.749075]
[1726578550923,0.00204,59418.0,59417.0,0.244155]
[1726578551620,0.00304,59418.0,59417.0,0.246155]
[1726578551825,0.00304,59418.0,59417.0,0.27198153]
[1726578552006,0.00304,59418.0,59417.0,0.27298153]
[1726578552210,0.00252437,59424.0,59423.0,0.084146]
[1726578552410,0.00252437,59424.0,59423.0,0.445746]
[1726578554820,0.00252437,59424.0,59423.0,0.448746]
[1726578555415,0.36332437,59424.0,59423.0,0.0038]
[1726578555619,0.36332437,59424.0,59423.0,0.0058]
[1726578556321,0.44746937,59424.0,59423.0,0.0058]
[1726578556923,1.55230937,59424.0,59423.0,0.0058]
[1726578557115,0.084153,59418.0,59417.0,0.02582653]
[1726578557319,0.5208,59418.0,59410.0,0.08668862]
[1726578557506,0.16,59411.0,59410.0,0.00252462]
[1726578557708,0.16,59411.0,59410.0,0.08668962]
[1726578558213,0.66496,59411.0,59410.0,0.00252462]
[1726578558412,1.26496,59411.0,59410.0,0.00952462]
[1726578558721,1.26596,59411.0,59410.0,0.01452462]
[1726578559024,0.750123,59411.0,59410.0,0.01452462]
[1726578559409,0.750043,59411.0,59410.0,0.01452462]
[1726578560118,0.751043,59411.0,59410.0,0.01152462]
[1726578560319,0.828143,59411.0,59410.0,0.01152462]
[1726578560720,0.827143,59411.0,59410.0,0.00952462]
[1726578561723,0.826143,59411.0,59410.0,0.00552462]
[1726578562716,0.321183,59411.0,59410.0,0.00552462]
[1726578563123,0.826143,59411.0,59410.0,0.00552462]
[1726578564015,1.34198,59411.0,59395.0,0.0146]
[1726578564213,1.34198,59411.0,59400.0,0.084179]
[1726578564214,0.16,59401.0,59400.0,0.084179]
[1726578564719,0.3608,59402.0,59396.0,0.3608]
[1726578564923,0.3608,59402.0,59401.0,0.084177]
[1726578565225,0.244172,59405.0,59402.0,0.084176]
[1726578565425,0.244172,59405.0,59404.0,0.0008]
[1726578567315,0.244172,59405.0,59401.0,0.003]
[1726578567316,0.084176,59402.0,59401.0,0.003]
[1726578567515,0.604976,59402.0,59401.0,0.003]
[1726578568620,0.084182,59398.0,59397.0,0.02537251]
[1726578568823,0.084184,59397.0,59395.0,0.0146]
[1726578569223,0.3608,59402.0,59400.0,0.084178]
[1726578569421,0.084178,59401.0,59398.0,0.084181]
[1726578569721,0.001,59402.0,59401.0,0.084177]
[1726578569922,0.085176,59402.0,59401.0,0.0008]
[1726578570330,0.606976,59402.0,59401.0,0.0028]
[1726578571323,0.605976,59402.0,59401.0,0.0028]
[1726578573537,0.604976,59402.0,59401.0,0.0018]
[1726578574519,0.604976,59402.0,59401.0,0.00172]
[1726578574932,0.605376,59402.0,59401.0,0.00172]
[1726578575236,0.689552,59402.0,59401.0,0.00172]
[1726578575733,1.794592,59402.0,59401.0,0.00172]
[1726578575923,1.794592,59402.0,59401.0,0.001]
[1726578576629,0.168368,59396.0,59395.0,0.01021759]
[1726578576830,0.689568,59396.0,59395.0,0.01021759]
[1726578578034,0.689568,59396.0,59395.0,0.01121759]
[1726578578332,0.773752,59396.0,59395.0,0.01121759]
[1726578579836,1.02530108,59396.0,59395.0,0.01121759]
[1726578581730,1.05124317,59396.0,59395.0,0.01121759]
[1726578582938,0.96705917,59396.0,59395.0,0.01121759]
[1726578585242,0.94111708,59396.0,59395.0,0.01121759]
[1726578585942,1.02530108,59396.0,59395.0,0.01121759]
[1726578587738,1.53038108,59396.0,59395.0,0.01121759]
[1726578587943,0.084194,59389.0,59388.0,0.0039]
[1726578588139,0.084194,59389.0,59381.0,0.084205]
[1726578588140,0.0842,59385.0,59381.0,0.084205]
[1726578588338,0.1608,59382.0,59381.0,0.084205]
[1726578588842,0.1608,59382.0,59381.0,0.11053949]
[1726578590432,0.1618,59382.0,59381.0,0.11153949]
[1726578590636,0.0018,59382.0,59381.0,0.11153949]
[1726578590836,0.00252631,59388.0,59387.0,0.084197]
[1726578591045,0.36638,59396.0,59394.0,0.084186]
[1726578591344,0.36248,59396.0,59390.0,0.3608]
[1726578591549,0.0008,59391.0,59390.0,0.3608]
[1726578591751,0.36248,59396.0,59390.0,0.3608]
[1726578592545,0.36248,59396.0,59395.0,0.084186]
[1726578593054,0.36348,59396.0,59395.0,0.084186]
[1726578593848,0.36348,59396.0,59395.0,0.085186]
[1726578594344,0.36348,59396.0,59395.0,0.166586]
[1726578594651,0.36248,59396.0,59395.0,0.166586]
[1726578595145,0.36248,59396.0,59395.0,0.246886]
[1726578595542,0.446664,59396.0,59395.0,0.001]
[1726578596348,0.446664,59396.0,59395.0,0.02729191]
[1726578597153,0.70032266,59396.0,59395.0,0.02729191]
[1726578598542,0.78450666,59396.0,59395.0,0.02729191]
[1726578598750,0.94032266,59396.0,59395.0,0.001]
[1726578601343,0.70032266,59396.0,59395.0,0.001]
[1726578602056,0.7261189,59396.0,59395.0,0.001]
[1726578604052,0.8103029,59396.0,59395.0,0.001]
[1726578604351,0.7261189,59396.0,59395.0,0.001]
[1726578604752,0.7261189,59396.0,59395.0,0.085186]
[1726578604753,0.36248,59396.0,59395.0,0.085186]
[1726578604957,0.36248,59396.0,59395.0,0.001]
[1726578605355,0.446664,59396.0,59395.0,0.001]
[1726578605557,0.530848,59396.0,59395.0,0.001]
[1726578606464,0.446664,59396.0,59395.0,0.001]
[1726578607547,0.530848,59396.0,59395.0,0.001]
[1726578610563,0.446664,59396.0,59395.0,0.001]
[1726578611248,0.36248,59396.0,59395.0,0.001]
[1726578613461,0.52248,59396.0,59395.0,0.001]
[1726578615765,0.606664,59396.0,59395.0,0.001]
[1726578617061,0.690848,59396.0,59395.0,0.001]
[1726578617254,0.606664,59396.0,59395.0,0.001]
[1726578618974,0.690848,59396.0,59395.0,0.001]
[1726578619465,0.606664,59396.0,59395.0,0.001]
[1726578619973,0.690848,59396.0,59395.0,0.001]
[1726578620175,0.606664,59396.0,59395.0,0.001]
[1726578620570,0.690848,59396.0,59395.0,0.001]
[1726578620764,0.446664,59396.0,59395.0,0.001]
[1726578621077,0.690848,59396.0,59395.0,0.001]
[1726578621669,0.606664,59396.0,59395.0,0.001]
[1726578621978,0.690848,59396.0,59395.0,0.001]
[1726578622166,0.606664,59396.0,59395.0,0.001]
[1726578622363,0.71632802,59396.0,59395.0,0.001]
[1726578622769,0.63214402,59396.0,59395.0,0.001]
[1726578622982,0.71632802,59396.0,59395.0,0.001]
[1726578624079,1.30433402,59396.0,59387.0,0.0039]
[1726578624373,0.0842,59385.0,59377.0,0.0039]
[1726578624587,0.16,59378.0,59373.0,0.0797]
[1726578624882,0.1608,59374.0,59373.0,0.0797]
[1726578625177,0.16,59374.0,59373.0,0.0797]
[1726578626874,0.161,59374.0,59373.0,0.0807]
[1726578628171,0.162,59374.0,59373.0,0.0837]
[1726578633079,0.162,59374.0,59373.0,0.167917]
[1726578633376,0.162,59374.0,59373.0,0.0837]
[1726578634274,0.5228,59374.0,59373.0,0.0837]
[1726578634579,0.607016,59374.0,59373.0,0.08362]
[1726578635775,0.607016,59374.0,59373.0,0.004]
[1726578646486,0.63220901,59374.0,59373.0,0.004]
[1726578647785,0.607016,59374.0,59373.0,0.004]
[1726578649783,0.607016,59374.0,59363.0,0.2323]
[1726578649784,0.084225,59368.0,59360.0,0.0775]
[1726578650082,0.0008,59362.0,59360.0,0.0775]
[1726578650381,0.16,59365.0,59361.0,0.084234]
[1726578651088,0.16,59365.0,59361.0,0.001]
[1726578651284,0.244229,59365.0,59361.0,0.001]
[1726578651480,0.244229,59365.0,59360.0,0.10355458]
[1726578651675,0.245229,59365.0,59361.0,0.001]
[1726578652587,0.246229,59365.0,59361.0,0.004]
[1726578653381,0.246229,59365.0,59361.0,0.003]
[1726578654787,0.08423,59364.0,59361.0,0.003]
[1726578656174,0.605033,59362.0,59361.0,0.003]
[1726578656379,0.244233,59362.0,59361.0,0.003]
[1726578657180,0.084234,59361.0,59360.0,0.02605458]
[1726578657379,0.084237,59360.0,59357.0,0.00252696]
[1726578657574,0.1608,59358.0,59357.0,0.00252696]
[1726578658084,0.245038,59358.0,59357.0,0.00252696]
[1726578658482,0.690076,59358.0,59357.0,0.00252696]
[1726578658683,0.690076,59358.0,59350.0,0.0039]
[1726578658684,0.168496,59351.0,59350.0,0.0039]
[1726578658877,0.5216,59351.0,59345.0,0.00252758]
[1726578659082,0.0008,59351.0,59349.0,0.08425]
[1726578659681,0.0008,59351.0,59347.0,0.3608]
[1726578659883,0.0008,59348.0,59347.0,0.445053]
[1726578660280,0.0008,59348.0,59347.0,0.3608]
[1726578660281,0.085053,59348.0,59347.0,0.3608]
[1726578660487,0.0008,59348.0,59346.0,0.0755]
[1726578660681,0.0008,59347.0,59346.0,0.159754]
[1726578662381,0.0018,59347.0,59346.0,0.159754]
[1726578663084,0.0018,59347.0,59346.0,0.319754]
[1726578663300,0.0028,59347.0,59346.0,0.319754]
[1726578663787,0.0039,59358.0,59353.0,0.084245]
[1726578663995,0.0039,59361.0,59355.0,0.084243]
[1726578664296,0.0039,59361.0,59354.0,1.02624]
[1726578664297,0.3608,59363.0,59362.0,0.084233]
[1726578664592,0.3608,59363.0,59362.0,0.084113]
[1726578666480,0.00252685,59368.0,59362.0,1.10536]
[1726578666689,0.00252685,59368.0,59367.0,0.084226]
[1726578667987,0.00352685,59368.0,59367.0,0.086226]
[1726578668187,0.00452685,59368.0,59367.0,0.088226]
[1726578668692,0.00452685,59368.0,59367.0,0.086326]
[1726578669383,0.002,59368.0,59367.0,0.170552]
[1726578669979,0.002,59368.0,59367.0,0.168552]
[1726578669980,0.001,59368.0,59367.0,0.168552]
[1726578670277,0.002,59368.0,59367.0,0.169552]
[1726578671700,0.002,59368.0,59367.0,0.674872]
[1726578671885,0.002,59368.0,59367.0,1.274872]
[1726578672401,0.0039,59375.0,59374.0,0.084216]
[1726578672691,0.0039,59375.0,59367.0,1.190646]
[1726578672692,0.00252648,59377.0,59376.0,0.084213]
[1726578673292,0.08673748,59377.0,59376.0,0.084213]
[1726578673494,0.00252648,59377.0,59376.0,0.084213]
[1726578674186,0.00252648,59377.0,59376.0,0.244213]
[1726578674386,0.0039,59384.0,59377.0,0.084211]
[1726578674588,0.445,59386.0,59385.0,0.0842]
[1726578674985,0.00252644,59388.0,59387.0,0.084197]
[1726578677496,0.01352644,59388.0,59387.0,0.084197]
[1726578677695,0.011,59388.0,59387.0,0.529194]
[1726578677899,0.0039,59393.0,59387.0,0.444997]
[1726578678199,0.084189,59393.0,59392.0,0.16]
[1726578678397,0.084182,59398.0,59389.0,0.16]
[1726578678589,0.088084,59397.0,59393.0,0.084188]
[1726578678897,0.084182,59398.0,59393.0,0.084188]
[1726578679399,0.00148,59396.0,59393.0,0.084188]
[1726578679597,0.00148,59396.0,59395.0,0.084186]
[1726578680298,0.084189,59393.0,59392.0,0.00252514]
[1726578680592,0.0008,59393.0,59392.0,0.00252514]
[1726578680994,0.0008,59393.0,59392.0,0.24671514]
[1726578681588,0.0038,59393.0,59392.0,0.24671514]
[1726578681790,0.0058,59393.0,59392.0,0.24671514]
[1726578682995,0.0058,59393.0,59392.0,0.08671514]
[1726578683591,0.0058,59393.0,59392.0,0.24671514]
[1726578685695,0.0058,59393.0,59392.0,0.33090514]
[1726578686394,0.0058,59393.0,59392.0,0.24671514]
[1726578686596,0.0058,59393.0,59392.0,0.08671514]
[1726578688603,0.089989,59393.0,59392.0,0.08671514]
[1726578689098,0.089989,59393.0,59392.0,0.00252514]
[1726578689997,0.0058,59393.0,59392.0,0.08671514]
[1726578690194,0.5266,59393.0,59392.0,0.00252514]
[1726578690398,0.610789,59393.0,59392.0,0.00252514]
[1726578691110,0.5266,59393.0,59392.0,0.00252514]
[1726578692293,0.3666,59393.0,59392.0,0.08671514]
[1726578693191,0.3666,59393.0,59392.0,0.00252514]
[1726578695607,0.3666,59393.0,59392.0,0.08671514]
[1726578695804,0.3666,59393.0,59392.0,0.33090514]
[1726578695805,0.0058,59393.0,59392.0,0.33090514]
[1726578696307,0.0058,59393.0,59392.0,0.24671514]
[1726578696511,0.0058,59393.0,59392.0,0.08671514]
[1726578698912,0.0058,59393.0,59392.0,0.24671514]
[1726578699103,0.0058,59393.0,59392.0,0.08671514]
[1726578701507,0.0058,59393.0,59392.0,0.53170514]
[1726578701713,0.0058,59393.0,59392.0,0.44751514]
[1726578702100,0.0058,59393.0,59392.0,0.53170514]
[1726578703013,0.3608,59400.0,59395.0,0.084186]
[1726578703314,0.0039,59416.0,59404.0,0.084172]
[1726578703613,0.084149,59421.0,59415.0,0.1608]
[1726578703818,0.0058,59421.0,59420.0,0.08495]
[1726578704308,0.3608,59422.0,59421.0,0.084149]
[1726578704514,0.09021967,59423.0,59422.0,0.084148]
[1726578704818,0.3231,59436.0,59422.0,1.46568]
[1726578705118,0.3608,59437.0,59427.0,0.3608]
[1726578705119,0.0058,59432.0,59427.0,0.3608]
[1726578705414,0.3608,59437.0,59436.0,0.084128]
[1726578705712,0.566,59444.0,59439.0,0.084122]
[1726578705912,0.0058,59437.0,59436.0,0.0008]
[1726578706211,0.566,59444.0,59436.0,0.16]
[1726578706514,0.0058,59438.0,59436.0,0.16]
[1726578706701,0.0058,59438.0,59436.0,0.162]
[1726578706906,0.0058,59438.0,59437.0,0.084126]
[1726578707215,0.0039,59455.0,59437.0,1.02552]
[1726578707516,0.3608,59455.0,59445.0,0.3608]
[1726578707703,0.0058,59447.0,59445.0,0.444914]
[1726578708313,0.0058,59447.0,59446.0,0.084114]
[1726578708620,0.0058,59446.0,59442.0,0.00252343]
[1726578708815,0.0058,59446.0,59442.0,0.11054715]
[1726578709111,0.0058,59446.0,59443.0,0.084118]
[1726578709307,0.0058,59443.0,59442.0,0.02642915]
[1726578709614,0.00536,59443.0,59442.0,0.02642915]
[1726578710509,0.00936,59443.0,59442.0,0.02642915]
[1726578710710,0.01236,59443.0,59442.0,0.02642915]
[1726578711114,0.01236,59443.0,59442.0,0.00252343]
[1726578711115,0.53316,59443.0,59442.0,0.00252343]
[1726578711625,1.217278,59443.0,59442.0,0.00252343]
[1726578712317,0.084126,59437.0,59428.0,0.0039]
[1726578712517,0.5208,59432.0,59424.0,0.00252374]
[1726578712718,0.0707,59431.0,59424.0,0.02641145]
[1726578712915,0.3608,59427.0,59424.0,0.00252374]
[1726578714110,0.3628,59427.0,59424.0,0.00252374]
[1726578714506,0.3668,59427.0,59424.0,0.00252374]
[1726578714719,0.008,59427.0,59426.0,0.5208]
[1726578714917,0.008,59427.0,59426.0,0.16]
[1726578715620,0.5288,59427.0,59422.0,0.10795512]
[1726578715813,0.3688,59427.0,59422.0,0.084147]
[1726578716015,0.3668,59427.0,59423.0,0.084146]
[1726578716621,0.3668,59427.0,59421.0,0.0008]
[1726578716622,0.3668,59427.0,59424.0,0.16]
[1726578716819,0.3618,59427.0,59426.0,0.084142]
[1726578717022,0.3638,59427.0,59426.0,0.084142]
[1726578717418,0.3618,59427.0,59426.0,0.084142]
[1726578717618,0.3638,59427.0,59426.0,0.084142]
[1726578718011,0.3618,59427.0,59424.0,0.16]
[1726578718216,0.3618,59427.0,59423.0,0.00252414]
[1726578718217,0.3668,59427.0,59423.0,0.00252414]
[1726578719119,0.084142,59426.0,59423.0,0.00252414]
[1726578719325,0.3678,59427.0,59423.0,0.00252414]
[1726578719623,0.3678,59427.0,59426.0,0.0008]
[1726578720122,0.3628,59427.0,59426.0,0.0008]
[1726578720315,0.3638,59427.0,59426.0,0.0008]
[1726578720818,0.604941,59427.0,59426.0,0.0008]
[1726578721121,0.453941,59427.0,59426.0,0.0008]
[1726578721315,0.457941,59427.0,59426.0,0.0008]
[1726578722722,0.453941,59427.0,59426.0,0.0008]
[1726578722923,0.461941,59427.0,59426.0,0.0018]
[1726578723624,0.462941,59427.0,59426.0,0.0018]
[1726578723827,0.459941,59427.0,59426.0,0.0018]
[1726578724223,0.3758,59427.0,59426.0,0.0018]
[1726578724423,0.3698,59427.0,59426.0,0.0018]
[1726578724632,0.3788,59427.0,59426.0,0.0018]
[1726578725615,0.462941,59427.0,59426.0,0.0018]
[1726578725820,0.462941,59427.0,59421.0,0.02461367]
[1726578725821,1.04364,59427.0,59421.0,0.02461367]
[1726578726025,0.3608,59422.0,59407.0,0.1645]
[1726578726226,0.3608,59422.0,59382.0,0.5468]
[1726578726227,0.3608,59422.0,59421.0,0.084149]
[1726578726429,0.3608,59422.0,59419.0,0.16]
[1726578726634,0.3608,59422.0,59417.0,0.084154]
[1726578727125,0.3608,59422.0,59414.0,0.6316359]
[1726578727331,0.08415,59421.0,59414.0,0.6291559]
[1726578727528,0.3608,59417.0,59415.0,0.084157]
[1726578727833,0.08415,59421.0,59415.0,0.084157]
[1726578728031,0.08415,59421.0,59420.0,0.0008]
[1726578728425,0.001,59421.0,59420.0,0.0008]
[1726578728625,0.085149,59421.0,59420.0,0.0008]
[1726578729032,0.084153,59418.0,59417.0,0.001]
[1726578729237,0.244153,59418.0,59417.0,0.001]
[1726578729423,0.08416,59413.0,59403.0,0.091975]
[1726578729628,0.60496,59413.0,59402.0,0.084176]
[1726578729927,0.60496,59413.0,59412.0,0.00152447]
[1726578730130,0.08418,59399.0,59398.0,0.0078]
[1726578730336,0.08418,59399.0,59395.0,0.02634908]
[1726578730337,0.084184,59396.0,59395.0,0.02634908]
[1726578730526,0.084184,59396.0,59395.0,0.00252517]
[1726578731036,1.189264,59396.0,59395.0,0.00252517]
[1726578731233,1.10508,59396.0,59381.0,0.3686]
[1726578731442,0.0704,59398.0,59377.0,0.0678]
[1726578731443,0.084202,59384.0,59377.0,0.0678]
[1726578731643,0.16,59384.0,59377.0,0.0678]
[1726578731842,0.16,59384.0,59377.0,0.152011]
[1726578732137,0.44501,59378.0,59374.0,0.00252616]
[1726578732343,0.3608,59375.0,59374.0,0.00252616]
[1726578732535,0.244212,59377.0,59374.0,0.00252616]
[1726578732731,0.244212,59377.0,59376.0,0.0008]
[1726578733436,0.16,59377.0,59376.0,0.0008]
[1726578734340,0.244207,59380.0,59376.0,0.0008]
[1726578734531,0.244207,59380.0,59379.0,0.0008]
[1726578735334,0.084207,59380.0,59379.0,0.0008]
[1726578735629,0.3608,59381.0,59379.0,0.1608]
[1726578736136,0.3608,59381.0,59380.0,0.0008]
[1726578737949,0.445006,59381.0,59380.0,0.0008]
[1726578738360,0.446006,59381.0,59380.0,0.0008]
[1726578740362,0.3618,59381.0,59380.0,0.0008]
[1726578741454,0.446006,59381.0,59380.0,0.0008]
[1726578742258,0.445006,59381.0,59380.0,0.0008]
[1726578742956,0.445006,59381.0,59371.0,0.086619]
[1726578742957,0.084207,59380.0,59371.0,0.0024]
[1726578743165,0.445018,59372.0,59371.0,0.0024]
[1726578744358,0.529236,59372.0,59371.0,0.0024]
[1726578745651,0.446018,59372.0,59371.0,0.0024]
[1726578746655,0.447018,59372.0,59371.0,0.0104]
[1726578748950,0.7829592,59372.0,59371.0,0.0104]
[1726578749144,0.9429592,59372.0,59371.0,0.0104]
[1726578750456,0.96750514,59372.0,59371.0,0.0104]
[1726578750657,0.96790514,59372.0,59371.0,0.0104]
[1726578750958,0.9633592,59372.0,59371.0,0.0034]
[1726578751853,0.8791412,59372.0,59371.0,0.0034]
[1726578752760,0.7191412,59372.0,59371.0,0.0034]
[1726578753550,0.6349232,59372.0,59371.0,0.0034]
[1726578753854,0.3832,59372.0,59371.0,0.0034]
[1726578754253,0.3832,59372.0,59371.0,0.0708]
[1726578754449,0.3822,59372.0,59371.0,0.0708]
[1726578754649,0.0214,59372.0,59371.0,0.51582]
[1726578754858,0.0214,59372.0,59371.0,0.54049877]
[1726578755362,0.0214,59372.0,59371.0,0.17969877]
[1726578756252,0.0204,59372.0,59371.0,0.17969877]
[1726578758063,0.0104,59372.0,59371.0,0.17869877]
[1726578758259,0.0114,59372.0,59371.0,0.18469877]
[1726578758861,0.0044,59372.0,59371.0,0.18469877]
[1726578759361,0.0034,59372.0,59371.0,0.18469877]
[1726578759567,0.0044,59372.0,59371.0,0.17869877]
[1726578759769,0.693636,59372.0,59371.0,0.0024]
[1726578760164,0.693636,59372.0,59371.0,0.0014]
[1726578760566,0.692636,59372.0,59371.0,0.0014]
[1726578761071,0.608418,59372.0,59371.0,0.0014]
[1726578761366,0.611418,59372.0,59371.0,0.0014]
[1726578762265,0.614418,59372.0,59371.0,0.0014]
[1726578762568,0.615418,59372.0,59371.0,0.0024]
[1726578762764,0.616418,59372.0,59371.0,0.0024]
[1726578766375,0.700636,59372.0,59371.0,0.0024]
[1726578766765,0.616418,59372.0,59371.0,0.0024]
[1726578766966,0.616418,59372.0,59364.0,0.02381882]
[1726578766967,0.084228,59365.0,59364.0,0.02381882]
[1726578767176,0.084232,59363.0,59358.0,0.00252703]
[1726578767364,0.3616,59359.0,59358.0,0.00252703]
[1726578767668,0.3608,59359.0,59358.0,0.00252703]
[1726578768063,0.3608,59359.0,59358.0,0.02658873]
[1726578768265,0.3608,59359.0,59358.0,0.11082673]
[1726578768570,0.3608,59359.0,59358.0,0.00252703]
[1726578768571,0.605037,59359.0,59358.0,0.00252703]
[1726578769077,0.606037,59359.0,59358.0,0.01052703]
[1726578769279,0.607037,59359.0,59358.0,0.01052703]
[1726578769472,0.607037,59359.0,59358.0,0.008]
[1726578769673,0.691274,59359.0,59358.0,0.008]
[1726578770674,0.607037,59359.0,59358.0,0.008]
[1726578771778,0.607037,59359.0,59358.0,0.092238]
[1726578771779,0.3628,59359.0,59358.0,0.092238]
[1726578772164,0.0008,59365.0,59364.0,0.08423]
[1726578774371,0.0008,59365.0,59364.0,0.10897437]
[1726578774567,0.0008,59365.0,59364.0,0.11097437]
[1726578778869,0.169256,59365.0,59364.0,0.02674437]
[1726578780274,0.085028,59365.0,59364.0,0.02674437]
[1726578780683,0.315028,59365.0,59364.0,0.02674437]
[1726578781181,0.760056,59365.0,59364.0,0.002]
[1726578781486,0.828456,59365.0,59364.0,0.002]
[1726578782976,0.827456,59365.0,59364.0,0.002]
[1726578783175,0.827456,59365.0,59364.0,0.0028]
[1726578783381,1.08171881,59365.0,59364.0,0.0028]
[1726578785499,0.99749081,59365.0,59364.0,0.0028]
[1726578786180,0.69909081,59365.0,59364.0,0.0028]
[1726578786885,1.00696718,59365.0,59364.0,0.00252001]
[1726578787076,1.01331881,59365.0,59364.0,0.00252001]
[1726578787381,1.09754681,59365.0,59364.0,0.00252001]
[1726578787585,1.01331881,59365.0,59364.0,0.00252001]
[1726578788980,0.168474,59359.0,59358.0,0.00252702]
[1726578789186,0.760074,59359.0,59358.0,0.00252702]
[1726578789373,0.83795037,59359.0,59358.0,0.00252702]
[1726578790882,0.761074,59359.0,59358.0,0.01052702]
[1726578791673,0.531074,59359.0,59358.0,0.01052702]
[1726578791983,0.761074,59359.0,59358.0,0.00720454]
[1726578792177,0.762074,59359.0,59358.0,0.00920454]
[1726578792575,0.78427584,59359.0,59358.0,0.00920454]
[1726578793179,0.47003884,59359.0,59358.0,0.00920454]
[1726578793385,0.447837,59359.0,59358.0,0.00920454]
[1726578796087,0.607837,59359.0,59358.0,0.00920454]
[1726578798780,0.5236,59359.0,59358.0,0.00920454]
[1726578799482,0.607837,59359.0,59358.0,0.00920454]
[1726578802687,0.5236,59359.0,59358.0,0.00920454]
[1726578802888,0.607837,59359.0,59358.0,0.00920454]
[1726578803686,0.5236,59359.0,59358.0,0.00920454]
[1726578803887,0.3636,59359.0,59358.0,0.00920454]
[1726578804787,0.447837,59359.0,59358.0,0.00920454]
[1726578805096,0.3636,59359.0,59358.0,0.00920454]
[1726578805291,0.447837,59359.0,59358.0,0.00920454]
[1726578805591,0.607837,59359.0,59358.0,0.00920454]
[1726578807093,0.607837,59359.0,59356.0,0.0202877]
[1726578807094,0.08424,59357.0,59356.0,0.0202877]
[1726578807299,0.084249,59351.0,59349.0,0.0039]
[1726578807487,0.1608,59350.0,59349.0,0.02244433]
[1726578807682,0.084254,59348.0,59346.0,0.00252752]
[1726578807894,0.445854,59347.0,59346.0,0.00252752]
[1726578808300,0.605854,59347.0,59346.0,0.00252752]
[1726578808796,0.68374947,59347.0,59346.0,0.02519941]
[1726578809095,0.690108,59347.0,59346.0,0.00252752]
[1726578809485,0.084267,59338.0,59337.0,0.0657]
[1726578809684,0.084271,59335.0,59334.0,0.00252806]
[1726578809890,0.245071,59335.0,59334.0,0.00252806]
[1726578810188,0.16,59335.0,59334.0,0.00252806]
[1726578810389,0.5216,59338.0,59334.0,0.00252806]
[1726578810899,0.605867,59338.0,59334.0,0.00252806]
[1726578811090,0.605867,59338.0,59331.0,0.04732806]
[1726578811292,0.0008,59332.0,59331.0,0.04732806]
[1726578811787,0.0008,59332.0,59331.0,0.13160506]
[1726578811990,0.0008,59332.0,59331.0,0.15486566]
[1726578812305,0.0008,59332.0,59331.0,0.15739369]
[1726578813097,0.0008,59332.0,59331.0,1.78383369]
[1726578814799,0.0018,59332.0,59331.0,1.78883369]
[1726578816206,0.0018,59332.0,59331.0,1.62883369]